Cogmind - Beta 11 @@@ ROGUE MODE // 2022.03.25 @ 03:42:43 Player: Dytto Result: Destroyed by G-47 Trooper with Particle Gun Performance ------------- Evolutions (0) 0 Regions Visited (2) 400 Robots Destroyed (16) 80 Value Destroyed (382) 382 Prototype IDs (0) 0 Alien Tech Used (0) 0 Bonus (0) 0 TOTAL SCORE: 862 Bonus ------- None Cogmind --------- Core Integrity 0/250 Matter 299/300 Energy 94/100 System Corruption 0% Temperature Hot (217) Movement Walking (120) Location -10/Mines Parts ------- > --- POWER (1) -------- (None) > --- PROPULSION (2) --- Carbon-fiber Leg Carbon-fiber Leg > --- UTILITY (2) ------ Targeting Computer Utility Shielding > --- WEAPON (2) ------- Beamcaster Light Assault Rifle > --- INVENTORY (5) ---- Heat Sink Targeting Computer Small Laser Peak State ------------ > --- POWER ------------ Light Ion Engine > --- PROPULSION ------- Carbon-fiber Leg Carbon-fiber Leg > --- UTILITY ---------- Heat Sink Targeting Computer > --- WEAPON ----------- Beamcaster Light Assault Rifle > --- INVENTORY -------- Ion Engine Aluminum Leg Heat Sink Small Laser Mining Laser [Rating: 15] Favorites ----------- Power Ion Engine Engine Ion Engine Propulsion Aluminum Leg Leg Aluminum Leg Wheel Wheel Utility Targeting Computer Device Seismic Detector Processor Targeting Computer Protection Utility Shielding Weapon Medium Laser Energy Gun Medium Laser Ballistic Gun Assault Rifle Special Weapon Mining Laser Build | -11 -10 -10 ------- Run | Scr Mat Min Slots Evolved . | . . . Power . | . . . Propulsion . | . . . Utility . | . . . Weapon . | . . . Parts Attached 21 | 5 7 9 Power 3 | 1 1 1 Engine 3 | 1 1 1 Core . | . . . Reactor . | . . . Propulsion 8 | 2 2 4 Treads . | . . . Leg 6 | 2 . 4 Wheel 2 | . 2 . Hover . | . . . Flight . | . . . Utility 4 | . 2 2 Device 2 | . 1 1 Storage . | . . . Processor 1 | . 1 . Hackware . | . . . Protection 1 | . . 1 Artifact . | . . . Weapon 6 | 2 2 2 Energy Gun 3 | 1 1 1 Energy Cannon . | . . . Ballistic Gun 2 | 1 . 1 Ballistic Cannon . | . . . Launcher . | . . . Special Weapon 1 | . 1 . Impact Weapon . | . . . Slashing Weapon . | . . . Piercing Weapon . | . . . Special Melee Weapon . | . . . Unidentified Prototypes . | . . . Parts Lost 8 | . 7 1 Power 2 | . 1 1 Propulsion 3 | . 3 . Utility 1 | . 1 . Weapon 2 | . 2 . Highest Loss Streak 3 | . 3 1 To Critical Strikes . | . . . Average Slot Usage (%) 95 | . 93 99 Engine 13 | . 13 14 Leg 23 | . 20 27 Wheel 3 | . 6 . Device 8 | . 12 4 Processor 13 | . 13 14 Protection 3 | . . 8 Energy Gun 13 | . 15 10 Ballistic Gun 11 | . 10 13 Special Weapon 1 | . . 3 Naked Turns . | . . . Heaviest Build 10 | 9 10 10 Greatest Support 30 | 20 20 30 Greatest Overweight (x) 2 | . 2 . Average Overweight (x) . | . . . Largest Inventory Capacity 5 | 5 5 5 Average Capacity 5 | 5 5 5 Most Carried 5 | 3 5 5 Average Carried 3 | 1 3 3 Final Capacity 5 | 5 5 5 Final Carried 5 | 3 5 3 Class Distribution -------------------- 58% | Mutant 41% | Scavenger-Mutant Dominant Class ---------------- Mutant | -10/Materials Scavenger-Mutant | -10/Mines Resources | -11 -10 -10 ----------- Run | Scr Mat Min Matter Collected 485 | 250 128 107 Remotely . | . . . Salvage Created 447 | . 389 58 Parts 22 | . 19 3 Haulers Intercepted . | . . . Recyclers Shooed 1 | . 1 . Parts Field Recycled . | . . . Retrieved Matter . | . . . Parts Self-Destructed . | . . . Prevented . | . . . Kills | -11 -10 -10 ------- Run | Scr Mat Min Combat Hostiles Destroyed 15 | . 9 6 Guns 13 | . 8 5 Cannons 1 | . . 1 Classes Destroyed 3 | . 2 1 Operator 1 | . 1 . Swarmer 6 | . . 6 Grunt 9 | . 9 . Best Kill Streak 4 | . 4 3 Combat Bots Only 4 | . 4 3 Max Kills in Single Turn 1 | . 1 1 Gunslinging . | . . . Exploded . | . . . Melee . | . . . Uniques/NPCs Destroyed . | . . . Combat | -11 -10 -10 -------- Run | Scr Mat Min Damage Taken 1084 | . 798 286 Core 254 | . 166 88 Absorbed by Shields . | . . . Core Remaining (%) 100 | 100 . . Volleys Fired 64 | . 52 12 Largest 2 | . 2 2 Hottest 140 | . 90 140 Shots Fired 111 | . 87 24 Gun 104 | . 87 17 Cannon . | . . . Launcher . | . . . Special 7 | . . 7 Kinetic 39 | . 28 11 Thermal 72 | . 59 13 Explosive . | . . . Electromagnetic . | . . . Robot Hit Streak 7 | . 6 7 Robot Miss Streak 4 | . 4 3 Penetration Max . | . . . Secondary Targets 2 | . . 2 Max Gunslinging Chain 1 | . . 1 Shots Hit Robots 65 | . 52 13 Core Hits 29 | . 20 9 Critical Kills . | . . . Critical Parts Destroyed . | . . . Critical Strikes 6 | . 6 . Burn 6 | . 6 . Melee Attacks . | . . . Impact . | . . . Slashing . | . . . Piercing . | . . . Sneak Attacks . | . . . Combat Hostiles . | . . . Follow-up Attacks . | . . . Damage Inflicted 929 | . 742 187 Guns 863 | . 724 139 Cannons . | . . . Explosions . | . . . Melee . | . . . Ramming 18 | . 18 . Kinetic 274 | . 230 44 Thermal 637 | . 494 143 Explosive . | . . . Electromagnetic . | . . . Impact . | . . . Slashing . | . . . Piercing . | . . . Highest Corruption . | . . . Average Corruption . | . . . Corruption Purged . | . . . Corruption Blocked . | . . . Overload Shots . | . . . Overflow Damage . | . . . Projectiles . | . . . Explosions . | . . . Melee . | . . . Knockbacks . | . . . Impact . | . . . Kinetic . | . . . Secondary . | . . . Self-Inflicted Damage 7 | . 7 . Shots . | . . . Rammed 2 | . 2 . Targets Rammed 3 | . 3 . Kicked 1 | . 1 . Crushed . | . . . Highest Temperature 233 | . 164 233 Average Temperature 44 | . 39 82 Received Heat Transfer 468 | . 351 117 Siege Activations . | . . . Robots Corrupted . | . . . Combat Hostiles . | . . . Parts Fried . | . . . Impact Corruptions . | . . . Robots Melted 1 | . 1 . Combat Hostiles 1 | . 1 . Parts Melted 1 | . 1 . Heat Transferred 2137 | . 1864 273 Parts Sabotaged . | . . . Parts Stolen . | . . . Parts Stripped . | . . . Power Chain Reactions . | . . . Missiles Intercepted . | . . . Alert | -11 -10 -10 ------- Run | Scr Mat Min Peak Influence 185 | . 185 147 Initial 66 | . . 66 Average 74 | . 55 115 Maximum Alert Level . | . . . Low Security (%) 100 | 100 100 100 Level 1 . | . . . Level 2 . | . . . Level 3 . | . . . Level 4 . | . . . Level 5 . | . . . High Security . | . . . Max Security . | . . . Squads Dispatched 5 | . 5 . Investigation 1 | . 1 . Extermination . | . . . Reinforcement 4 | . 4 . Assault . | . . . Garrison . | . . . Intercept . | . . . Searches Triggered . | . . . Construction Impeded . | . . . Haulers Reinforced . | . . . Active Scanning Responses . | . . . Cargo Convoy Interrupts . | . . . Stealth | -11 -10 -10 --------- Run | Scr Mat Min Distress Signals 3 | . 3 . Communications Jammed . | . . . Distress Signals . | . . . Times Spotted 42 | . 29 13 Peak Tracking Total 6 | . 6 5 Tactical Retreats 2 | . 2 . Traps | -11 -10 -10 ------- Run | Scr Mat Min Traps Triggered 1 | . 1 . Indirectly . | . . . Trap Hack Attempts . | . . . Triggered . | . . . Disarmed . | . . . Reprogrammed . | . . . Reused . | . . . Traps Extracted . | . . . Installed . | . . . Triggered . | . . . Machines | -11 -10 -10 ---------- Run | Scr Mat Min Machines Disabled . | . . . Max in Single Turn . | . . . Machines Sabotaged . | . . . Garrisons Compromised . | . . . Overloaded Fab Kills . | . . . Hacking | -11 -10 -10 --------- Run | Scr Mat Min Machines Accessed 2 | . 2 . Terminals 2 | . 2 . Fabricators . | . . . Repair Stations . | . . . Recycling Units . | . . . Scanalyzers . | . . . Garrison Access . | . . . Total Hacks 3 | . 3 . Successful 3 | . 3 . Failed . | . . . Catastrophic . | . . . Database Lockouts . | . . . Manual . | . . . Terminals 3 | . 3 . Fabricators . | . . . Repair Stations . | . . . Recycling Units . | . . . Scanalyzers . | . . . Garrison Access . | . . . Terminal Hacks 3 | . 3 . Record 3 | . 3 . Fabricator Hacks . | . . . Repair Station Hacks . | . . . Recycling Unit Hacks . | . . . Scanalyzer . | . . . Garrison Access Hacks . | . . . Unauthorized Hacks . | . . . Terminals . | . . . Fabricators . | . . . Repair Stations . | . . . Recycling Units . | . . . Scanalyzers . | . . . Garrison Access . | . . . Data Cores Recovered . | . . . Used . | . . . Hacking Detections 1 | . 1 . Full Trace Events . | . . . Feedback Events . | . . . Feedback Blocked . | . . . Robot Schematics Acquired . | . . . Robots Built . | . . . Authchips . | . . . Time . | . . . Total Robot Build Rating . | . . . Part Schematics Acquired . | . . . Parts Built . | . . . Authchips . | . . . Time . | . . . Total Part Build Rating . | . . . Parts Repaired . | . . . Time . | . . . Parts Recycled . | . . . Recycled Matter . | . . . Retrieved Matter . | . . . Retrieved Components . | . . . Parts Scanalyzed . | . . . Part Schematics Acquired . | . . . Parts Damaged . | . . . Bothacking | -11 -10 -10 ------------ Run | Scr Mat Min Used RIF Installer . | . . . Robots Hacked . | . . . Non-combat . | . . . Combat . | . . . Robot Hacks Applied . | . . . Relay Couplers Released . | . . . Fabnet Peak Effective % . | . . . Robots Rewired . | . . . Allies Hacked . | . . . Hacks Repelled . | . . . Allies | -11 -10 -10 -------- Run | Scr Mat Min Total Allies 1 | . . 1 Largest Group 1 | . . 1 Highest-Rated Group 31 | . . 31 Highest-Rated Ally 31 | . . 31 Total Orders . | . . . Ally Attacks 4 | . . 4 Total Damage 20 | . . 20 Kills . | . . . Allies Corrupted . | . . . Allies Melted . | . . . Intel | -11 -10 -10 ------- Run | Scr Mat Min Robot Analysis Total . | . . . Derelict Logs Recovered 1 | . . 1 Drone Launches . | . . . Drone Recoveries . | . . . Exploration | -11 -10 -10 ------------- Run | Scr Mat Min Turns Passed 1158 | 89 609 460 Spaces Moved 744 | 70 364 310 Core 13 | 7 6 . Treads . | . . . Legs 612 | 63 239 310 Wheels 119 | . 119 . Hover . | . . . Flight . | . . . Fastest Speed 50 | 50 80 120 Average Speed 112 | 113 107 120 Slowest Speed 150 | 120 150 120 Overloaded Moves . | . . . Propulsion Burnouts . | . . . Robots Hopped . | . . . Cave-ins Triggered . | . . . Exploration Rate (%) 35 | 4 55 46 Regions Visited 2 Branch Regions 1 Pre-discovered Areas 1 | . . 1 Known Exits Taken . | . . . Unknown Exits Taken 2 | 1 1 . Scrap Searched 2 | . . 2 Spaces Dug . | . . . Terrain Destroyed 3 | . . 3 Melee . | . . . Projectile 3 | . . 3 AOE . | . . . Terrain Rammed . | . . . Walls Destroyed . | . . . Machines Disabled . | . . . Actions | -11 -10 -10 --------- Run | Scr Mat Min Total 936 | 77 495 364 Wait 87 | . 65 22 Move 742 | 69 363 310 Hop . | . . . Pick Up 9 | 3 4 2 Fast Attach 14 | 5 4 5 Attach 7 | . 3 4 Detach 4 | . 1 3 Swap . | . . . Drop 6 | . . 6 Fire 64 | . 52 12 Melee . | . . . Ram 2 | . 2 . Kick 1 | . 1 . Crush . | . . . Escape Stasis . | . . . Rewire . | . . . Trap . | . . . Miscellaneous . | . . . Route ------- -11/Scrapyard -10/Materials (discovered 4 exits: [*Mat x3] / [*Min]) -10/Mines (discovered 1 exit: [*Mat]) History --------- Turn | Location | Event 3 | -11/Scrapyard | Discovered new exit (range 16) 90 | -11/Scrapyard | Entered Materials 311 | -10/Materials | Build established: Mutant 388 | -10/Materials | Discovered new exit (range 8) 471 | -10/Materials | Discovered new exit (range 16) 556 | -10/Materials | Lost 3 parts (1p1n1w) 591 | -10/Materials | Discovered new exit (range 12) 679 | -10/Materials | Discovered new exit (range 16) 686 | -10/Materials | Core integrity fell below 50% 699 | -10/Materials | Entered Mines 704 | -10/Mines | Escorted by a lone wolf Derelict 722 | -10/Mines | Lost 3 parts (1n1u1w) 724 | -10/Mines | Learned location of Storage (-9) 752 | -10/Mines | Discovered new exit (range 9) 950 | -10/Mines | Learned Materials stockpile data 986 | -10/Mines | Build established: Scavenger-Mutant 1152 | -10/Mines | Core integrity fell below 20% 1159 | -10/Mines | Destroyed by G-47 Trooper with Particle Gun Last Messages --------------- 00867_ Acquired Utility Shielding. 00869_ Dropped Ion Engine. 00870_ Dropped Aluminum Leg. 00870_ Dropped Mining Laser. 00873_ Acquired Targeting Computer. 00875_ Acquired 10 matter. 00950_ Acquired derelict log, extracted data. Data stored: Materials stockpile data. 01016_ K-01 Serf collects debris. 01126_ Searching scrap... 01126_ Found Hcp. Matter Pod. 01126_ Found 32 Matter. 01143_ S-10 Pest destroyed. 01143_ Switching to secondary target: S-10 Pest. 01146_ Acquired 1 matter. 01148_ S-10 Pest destroyed. 01148_ Switching to secondary target: G-47 Trooper. 01149_ Critical hit (Burn: +37). 01155_ Lgt. Ion Engine destroyed. 01157_ Critical hit (Burn: +37). Map ----- +----------------------------------------------------+ | ?????????# #???????# #?? ??????? | | ???####### #??????## #??# ??????? | | ???# #####?## #??# #??????? | | ???# ##### ### #???# #??????? | | ???# #???##### ##??# #??????? | | ???# ######### ### #### #??????? | | ???# ## # ### ## #??????# | | ???# ## """ # # ##?????# | | ???# ## """ ##### #?????# | | ???# ## """ #???# ###### #?????# | | ???# ## #???## ##????# #?????# | | ???# ###### ###???####????## #?????# | | ???# #????# ########???## ##????# | | ???# #????# ##### ##???# | | ???# #????# ## #???# | | ???# #???## ##### | | ???# #???# ##### | | ???# #???## #####???## ####### | | ???# #????######????????## ## #?????? | | ???# #???????????????????# ## #?????? | | ???# #?????????????????### ## #?????? | | ???# ##????????????????# ## #?????? | | ??## ##???????????????# #### #?????? | | ??# ##???????????#### ##?# #?????? | | ??# ############# #?# #?????? | | ??# t @% g #? ??????? | | ??## #####s###### #? ??????? | | ???# #???# ###### #? ??????? | | ??## ##???# # ###?#??????? | | ??# ###### #### ## ##??????????? | | ??# #?????#####???????????? | | ??## ########?????????????????????? | | ???## #????????????????????????????? | | ????#! #????????????????????????????? | | ????# %#????????????????????????????? | | ????# ?????????????????????????? | | ????###### """ ?????????????????????? | | ???????????? ????????????????????? | | ???????????????#????????????????????? | | ????????????????????????????????????? | | ????????????????????????????????????? | | | | | | | | | | | | | | | | | | | +----------------------------------------------------+ Best States ------------- Heat Dissipation 35 Energy Generation 10 Energy Capacity 250 Matter Stores 300 Matter Capacity 300 Sight Range 16 Terrain Scan Density 10 Utility Shielding 33 Evasion (%) 55 Targeting Accuracy 5 Item Schematics ----------------- None Robot Schematics ------------------ None Fabricated ------------ Nothing Alien Tech Used ----------------- None Achievements -------------- None Challenges ------------ None Game ------ Seed ChainShadeRifle Manual? 0 Play Time 00:11:58 Cumulative 16.5 hours Start 2022.03.25 @ 03:33:57 End 2022.03.25 @ 03:42:43 Sessions 1 Manual Loads 0 Difficulty Rogue Special Mode None Game No. 60 Rogue 24 Adventurer 36 Explorer 0 Win Type - Total 0 Types 0/0/0/0/0/0/0/0/0 Lore% 14 Gallery% 20 Achievement% 15 Wizard Run 0 Options --------- ASCII 0 Keyboard 1 Movement Numpad Keybinds 0 Fullscreen 2 Font 18/X11Bold Map View 76x50 Tactical HUD 1 Map Filters NONE Filters NONE Steam 1 RUN: 899157e8-fbef-4496-8ec5-27fb1b819736